fUST/lending_fUST_20240423
["ID","MTS","AMOUNT","RATE_DAILY","PERIOD"]
[323275271,1713863443375,-500.0,0.00021917,2]
[323275273,1713863443384,-503.64023074,0.00021917,2]
[323275275,1713863443393,-500.0,0.00021917,2]
[323275277,1713863443402,-601.58,0.00021917,2]
[323275279,1713863443412,-726.15,0.00021917,2]
[323275281,1713863443421,-505.63024773,0.00021917,2]
[323275283,1713863443431,-249.53106033,0.00021917,2]
[323275334,1713863443906,-256.33407568,0.00021917,2]
[323275336,1713863443915,-500.0,0.00021917,2]
[323275338,1713863443924,-500.0,0.00021917,2]
[323275340,1713863443933,-503.02512277,0.00021917,2]
[323275342,1713863443942,-845.7,0.00021917,2]
[323275344,1713863443954,-171.44080155,0.00021917,2]
[323275503,1713863446619,-328.55919845,0.00021917,2]
[323275504,1713863446630,-500.0,0.00021917,2]
[323275505,1713863446639,-500.0,0.00021917,2]
[323275506,1713863446648,-500.0,0.00021917,2]
[323275507,1713863446658,-500.0,0.00021917,2]
[323275509,1713863446667,-500.0,0.00021917,2]
[323275511,1713863446676,-231.26795155,0.00021917,2]
[323275557,1713864546159,-154.84515485,0.00016894,2]
[323275558,1713864546179,-154.84515485,0.00016895,2]
[323275559,1713864546198,-307.205924,0.0001742,2]
[323275560,1713864546218,-255.27698203,0.00017492,2]
[323275561,1713864546238,-11.58155825,0.00017583,2]
[323275562,1713864555104,-588.41844175,0.00017407,2]
[323275563,1713864555127,-288.41844175,0.00017583,2]
[323275564,1713864555148,-300.0,0.00017583,2]
[323275565,1713864555172,-24900.0,0.00017584,2]
[323275566,1713864555192,-396.82482653,0.00017591,2]
[323275567,1713864559102,-155.93392844,0.00017591,2]
[323275568,1713864559122,-1192.1767146,0.00018006,2]
[323275569,1713864559142,-603.3578092,0.000185,2]
[323275570,1713864559162,-303.9075055,0.00018517,2]
[323275571,1713864559182,-614.06113645,0.00018517,2]
[323275572,1713864559201,-309.06067658,0.00018517,2]
[323275573,1713864559222,-479.22725919,0.00018517,2]
[323275574,1713864559241,-189.19295912,0.0001897,2]
[323275575,1713864559261,-615.75933218,0.00019,2]
[323275576,1713864559280,-165.423659,0.00019178,2]
[323275577,1713864559300,-420.0,0.00019193,2]
[323275578,1713864559321,-420.0,0.00019342,2]
[323275579,1713864559340,-411.41425187,0.00019507,2]
[323275580,1713864559359,-167.567261,0.0001961,2]
[323275581,1713864559378,-5656.27824772,0.00019795,2]
[323275582,1713864563100,-150.81901718,0.00017415,2]
[323275583,1713864567336,-5.11491126,0.00017415,2]
[323275584,1713864567357,-145.70410592,0.00019506,2]
[323275635,1713864638762,-300.0,0.00017414,2]
[323275637,1713864638772,-300.0,0.00017414,2]
[323275639,1713864638782,-2082.66542024,0.00018711,2]
[323275641,1713864638792,-603.3578092,0.00018899,2]
[323275643,1713864638802,-2082.66542024,0.000189,2]
[323275645,1713864638812,-420.0,0.00019012,2]
[323275647,1713864638821,-420.0,0.00019155,2]
[323275649,1713864638830,-22149.72248961,0.00019795,2]
[323275651,1713864638840,-1463.08626598,0.000199,2]
[323275653,1713864638853,-536.91373402,0.000199,2]
[323275655,1713864638863,-488.57,0.0001999,3]
[323275657,1713864638872,-895.7,0.0001999,3]
[323275659,1713864638881,-447.85,0.0001999,3]
[323275661,1713864638890,-223.93,0.0001999,3]
[323275663,1713864638899,-671.81,0.0001999,3]
[323275665,1713864638909,-1878.1368462,0.00019998,2]
[323275667,1713864638918,-189.19295912,0.00019999,2]
[323275669,1713864638927,-615.75933218,0.00019999,2]
[323275671,1713864638937,-319.72058798,0.0002,2]
[323275673,1713864638948,-5459.67159958,0.0002,2]
[323275675,1713864638958,-678.04287141,0.0002,2]
[323275677,1713864638968,-241.51912105,0.0002,2]
[323275679,1713864638977,-154.84515485,0.0002,2]
[323275681,1713864638987,-154.84515485,0.0002,2]
[323275683,1713864638997,-73081.97756939,0.0002,2]
[323275685,1713864639007,-277.98874346,0.0002,2]
[323275687,1713864639016,-238.88786072,0.0002,2]
[323275689,1713864639025,-354.80715765,0.0002,2]
[323275691,1713864639036,-400.0,0.0002,2]
[323275693,1713864639045,-1442.68762834,0.0002,2]
[323275695,1713864639055,-524.5590718,0.0002,4]
[323275697,1713864639065,-154.84515485,0.0002,2]
[323275699,1713864639075,-200.0,0.0002,2]
[323275701,1713864639086,-587.0,0.00020757,2]
[323275704,1713864639096,-3344.28028285,0.00021,2]
[323275706,1713864639106,-7925.57647667,0.00021,2]
[323275708,1713864639115,-587.0,0.00021071,2]
[323275710,1713864639125,-203.583665,0.00021096,2]
[323275712,1713864639134,-306.0,0.00021096,2]
[323275714,1713864639143,-153.0,0.00021123,2]
[323275716,1713864639152,-153.0,0.00021123,2]
[323275717,1713864639160,-155.2002665,0.00021123,2]
[323275719,1713864639170,-5000.0,0.000213,2]
[323275722,1713864639179,-1791.4,0.0002136,3]
[323275723,1713864639188,-895.7,0.0002136,3]
[323275725,1713864639196,-447.86,0.0002136,3]
[323275728,1713864639207,-153.0,0.0002137,2]
[323275730,1713864639216,-153.0,0.00021644,2]
[323275732,1713864639225,-954.1175825,0.00021677,2]
[323275734,1713864639234,-974.7110166,0.00021824,2]
[323275736,1713864639243,-1090.08472256,0.00021915,2]
[323275738,1713864639252,-288.1062039,0.00021915,2]
[323275740,1713864639261,-180.29576103,0.00021916,2]
[323275742,1713864639270,-553.83136724,0.00021916,2]
[323275744,1713864639279,-500.0,0.00021916,2]
[323275746,1713864639291,-197.96771572,0.00021916,2]
[323275748,1713864639300,-176.06799262,0.00021916,2]
[323275750,1713864639310,-154.84515485,0.00021917,2]
[323275752,1713864639321,-3600.0,0.00021917,2]
[323275753,1713864639330,-10117.08160631,0.00021917,2]
[323275755,1713864639340,-221.86358459,0.00021917,2]
[323275758,1713864639349,-200.0,0.00021917,2]
[323275759,1713864639358,-1000.0,0.00021917,2]
[323275761,1713864639367,-500.0,0.00021917,2]
[323275764,1713864639377,-500.0,0.00021917,2]
[323275766,1713864639386,-500.0,0.00021917,2]
[323275767,1713864639395,-500.0,0.00021917,2]
[323275769,1713864639405,-500.0,0.00021917,2]
[323275771,1713864639414,-500.0,0.00021917,2]
[323275773,1713864639423,-500.0,0.00021917,2]
[323275775,1713864639432,-500.0,0.00021917,2]
[323275777,1713864639442,-500.0,0.00021917,2]
[323275779,1713864639451,-500.0,0.00021917,2]
[323275781,1713864639460,-500.0,0.00021917,2]
[323275783,1713864639472,-500.0,0.00021917,2]
[323275785,1713864639487,-500.0,0.00021917,2]
[323275787,1713864639496,-500.0,0.00021917,2]
[323275789,1713864639505,-500.0,0.00021917,2]
[323275791,1713864639515,-500.0,0.00021917,2]
[323275793,1713864639525,-500.0,0.00021917,2]
[323275795,1713864639534,-500.0,0.00021917,2]
[323275798,1713864639543,-500.0,0.00021917,2]
[323275800,1713864639554,-398.72465794,0.00021917,2]
[323275802,1713864639563,-729.59,0.00021917,2]
[323275804,1713864639572,-500.0,0.00021917,2]
[323275806,1713864639581,-500.0,0.00021917,2]
[323275808,1713864639590,-500.0,0.00021917,2]
[323275810,1713864639599,-513.06151119,0.00021917,2]
[323275812,1713864639608,-500.0,0.00021917,2]
[323275814,1713864639617,-500.0,0.00021917,2]
[323275816,1713864639626,-500.0,0.00021917,2]
[323275818,1713864639635,-504.19355796,0.00021917,2]
[323275820,1713864639646,-504.22410649,0.00021917,2]
[323275822,1713864639655,-500.0,0.00021917,2]
[323275824,1713864639664,-500.0,0.00021917,2]
[323275826,1713864639673,-500.0,0.00021917,2]
[323275828,1713864639682,-500.0,0.00021917,2]
[323275830,1713864639692,-500.0,0.00021917,2]
[323275832,1713864639701,-500.0,0.00021917,2]
[323275834,1713864639707,-500.0,0.00021917,2]
[323275836,1713864639714,-500.0,0.00021917,2]
[323275837,1713864639721,-500.0,0.00021917,2]
[323275839,1713864639729,-525.97516378,0.00021917,2]
[323275841,1713864639738,-500.0,0.00021917,2]
[323275843,1713864639747,-500.0,0.00021917,2]
[323275845,1713864639756,-500.0,0.00021917,2]
[323275847,1713864639764,-500.0,0.00021917,2]
[323275849,1713864639774,-500.0,0.00021917,2]
[323275851,1713864639783,-200.38370404,0.00021917,2]
[323275853,1713864639792,-527.24947871,0.00021917,2]
[323275855,1713864639802,-564.43,0.00021917,2]
[323275857,1713864639811,-500.0,0.00021917,2]
[323275859,1713864639820,-500.0,0.00021917,2]
[323275861,1713864639829,-522.87,0.00021917,2]
[323275863,1713864639839,-500.0,0.00021917,2]
[323275866,1713864639849,-500.0,0.00021917,2]
[323275868,1713864639858,-500.0,0.00021917,2]
[323275870,1713864639868,-500.0,0.00021917,2]
[323275872,1713864639877,-500.0,0.00021917,2]
[323275874,1713864639886,-500.0,0.00021917,2]
[323275876,1713864639896,-500.0,0.00021917,2]
[323275878,1713864639905,-623.04,0.00021917,2]
[323275880,1713864639914,-500.0,0.00021917,2]
[323275882,1713864639923,-500.0,0.00021917,2]
[323275883,1713864639932,-867.89,0.00021917,2]
[323275886,1713864639942,-1256.22,0.00021917,2]
[323275888,1713864639952,-500.0,0.00021917,2]
[323275890,1713864639961,-500.0,0.00021917,2]
[323275891,1713864640003,-500.0,0.00021917,2]
[323275893,1713864640012,-500.0,0.00021917,2]
[323275895,1713864640022,-151.0,0.00021917,2]
[323275897,1713864640031,-500.0,0.00021917,2]
[323275899,1713864640041,-500.0,0.00021917,2]
[323275901,1713864640052,-500.0,0.00021917,2]
[323275903,1713864640062,-500.0,0.00021917,2]
[323275905,1713864640073,-679.1,0.00021917,2]
[323275907,1713864640082,-500.0,0.00021917,2]
[323275909,1713864640092,-500.0,0.00021917,2]
[323275911,1713864640103,-1148.57,0.00021917,2]
[323275913,1713864640112,-500.0,0.00021917,2]
[323275915,1713864640123,-500.0,0.00021917,2]
[323275917,1713864640133,-500.6169929,0.00021917,2]
[323275919,1713864640143,-659.73,0.00021917,2]
[323275921,1713864640153,-503.49825132,0.00021917,2]
[323275923,1713864640162,-500.0,0.00021917,2]
[323275925,1713864640171,-500.0,0.00021917,2]
[323275927,1713864640180,-500.0,0.00021917,2]
[323275929,1713864640189,-500.0,0.00021917,2]
[323275931,1713864640200,-500.0,0.00021917,2]
[323275933,1713864640209,-500.0,0.00021917,2]
[323275935,1713864640219,-500.0,0.00021917,2]
[323275937,1713864640230,-1075.7,0.00021917,2]
[323275939,1713864640239,-1185.11,0.00021917,2]
[323275941,1713864640248,-701.94,0.00021917,2]
[323275943,1713864640258,-250.2823541,0.00021917,2]
[323275945,1713864640267,-500.0,0.00021917,2]
[323275947,1713864640277,-594.26746955,0.00021917,2]
[323275949,1713864640286,-500.0,0.00021917,2]
[323275951,1713864640297,-500.0,0.00021917,2]
[323275953,1713864640306,-500.0,0.00021917,2]
[323275955,1713864640322,-500.0,0.00021917,2]
[323275957,1713864640332,-500.0,0.00021917,2]
[323275959,1713864640343,-647.46,0.00021917,2]
[323275962,1713864640355,-500.0,0.00021917,2]
[323275963,1713864640365,-500.0,0.00021917,2]
[323275965,1713864640375,-500.0,0.00021917,2]
[323275967,1713864640386,-661.69,0.00021917,2]
[323275969,1713864640398,-500.0,0.00021917,2]
[323275971,1713864640406,-576.52,0.00021917,2]
[323275973,1713864640415,-500.0,0.00021917,2]
[323275976,1713864640425,-500.0,0.00021917,2]
[323275978,1713864640435,-500.0,0.00021917,2]
[323275980,1713864640444,-607.17,0.00021917,2]
[323275982,1713864640454,-248.51,0.00021917,2]
[323275984,1713864640463,-500.0,0.00021917,2]
[323275985,1713864640474,-500.0,0.00021917,2]
[323275987,1713864640483,-504.79379723,0.00021917,2]
[323275990,1713864640493,-500.0,0.00021917,2]
[323275991,1713864640502,-659.18,0.00021917,2]
[323275993,1713864640511,-741.73,0.00021917,2]
[323275995,1713864640521,-500.0,0.00021917,2]
[323275998,1713864640530,-500.0,0.00021917,2]
[323276000,1713864640540,-1062.04,0.00021917,2]
[323276002,1713864640551,-500.0,0.00021917,2]
[323276004,1713864640561,-500.0,0.00021917,2]
[323276006,1713864640570,-500.0,0.00021917,2]
[323276007,1713864640579,-252.16044463,0.00021917,2]
[323276010,1713864640589,-500.0,0.00021917,2]
[323276012,1713864640598,-281.01822611,0.00021917,2]
[323276013,1713864640608,-500.0,0.00021917,2]
[323276016,1713864640617,-303.76176037,0.00021917,2]
[323276038,1713864640815,-19184.99388325,0.00019506,2]
[323276040,1713864640825,-1198.01823963,0.00021917,2]
[323276042,1713864640834,-500.0,0.00021917,2]
[323276044,1713864640843,-500.0,0.00021917,2]
[323276046,1713864640852,-322.84488904,0.00021917,2]
[323276048,1713864640861,-483.97185768,0.00021917,2]
[323276050,1713864640870,-500.0,0.00021917,2]
[323276053,1713864640880,-501.77138983,0.00021917,2]
[323276055,1713864640889,-711.08,0.00021917,2]
[323276057,1713864640900,-1959.49,0.00021917,2]
[323276059,1713864640909,-1106.74,0.00021917,2]
[323276061,1713864640918,-500.0,0.00021917,2]
[323276063,1713864640927,-500.0,0.00021917,2]
[323276065,1713864640936,-492.50350801,0.00021917,2]
[323276066,1713864640945,-501.41139841,0.00021917,2]
[323276068,1713864640954,-502.23074182,0.00021917,2]
[323276071,1713864640964,-164.34,0.00021917,2]
[323276073,1713864640973,-500.0,0.00021917,2]
[323276075,1713864640983,-500.0,0.00021917,2]
[323276076,1713864640992,-500.0,0.00021917,2]
[323276079,1713864641001,-500.0,0.00021917,2]
[323276080,1713864641010,-500.0,0.00021917,2]
[323276083,1713864641019,-167.16763837,0.00021917,2]
[323276085,1713864641031,-482.56236163,0.00021917,2]
[323276087,1713864641040,-179.28763837,0.00021917,2]
[323276090,1713864641061,-320.71236163,0.00021917,2]
[323276092,1713864641070,-500.0,0.00021917,2]
[323276094,1713864641079,-500.0,0.00021917,2]
[323276096,1713864641088,-1440.35,0.00021917,2]
[323276110,1713864641199,-500.0,0.00021917,2]
[323276112,1713864641209,-500.0,0.00021917,2]
[323276114,1713864641218,-500.0,0.00021917,2]
[323276116,1713864641227,-500.0,0.00021917,2]
[323276118,1713864641236,-615.76,0.00021917,2]
[323276120,1713864641245,-636.69,0.00021917,2]
[323276122,1713864641254,-500.0,0.00021917,2]
[323276124,1713864641263,-500.0,0.00021917,2]
[323276126,1713864641272,-1636.07,0.00021917,2]
[323276128,1713864641281,-500.0,0.00021917,2]
[323276130,1713864641290,-500.0,0.00021917,2]
[323276132,1713864641299,-516.22,0.00021917,2]
[323276134,1713864641308,-500.0,0.00021917,2]
[323276136,1713864641317,-500.0,0.00021917,2]
[323276138,1713864641326,-1621.41,0.00021917,2]
[323276140,1713864641335,-938.87,0.00021917,2]
[323276142,1713864641344,-500.0,0.00021917,2]
[323276144,1713864641353,-156.85903865,0.00021917,2]
[323276146,1713864641362,-500.0,0.00021917,2]
[323276148,1713864641370,-500.0,0.00021917,2]
[323276150,1713864641380,-500.0,0.00021917,2]
[323276151,1713864641389,-497.80400615,0.00021917,2]
[323276153,1713864641402,-500.0,0.00021917,2]
[323276156,1713864641412,-500.0,0.00021917,2]
[323276158,1713864641421,-593.98005266,0.00021917,2]
[323276159,1713864641430,-500.0,0.00021917,2]
[323276161,1713864641439,-2219.56,0.00021917,2]
[323276163,1713864641448,-1386.32,0.00021917,2]
[323276165,1713864641457,-500.0,0.00021917,2]
[323276167,1713864641467,-2240.36,0.00021917,2]
[323276170,1713864641480,-500.0,0.00021917,2]
[323276172,1713864641489,-500.0,0.00021917,2]
[323276173,1713864641499,-500.0,0.00021917,2]
[323276176,1713864641508,-9828.05,0.00021917,2]
[323276178,1713864641517,-500.0,0.00021917,2]
[323276180,1713864641527,-500.0,0.00021917,2]
[323276182,1713864641536,-500.0,0.00021917,2]
[323276184,1713864641545,-500.0,0.00021917,2]
[323276185,1713864641555,-630.15,0.00021917,2]
[323276187,1713864641564,-630.13,0.00021917,2]
[323276189,1713864641573,-2392.51,0.00021917,2]
[323276191,1713864641583,-500.0,0.00021917,2]
[323276193,1713864641592,-500.0,0.00021917,2]
[323276195,1713864641601,-500.0,0.00021917,2]
[323276197,1713864641610,-500.0,0.00021917,2]
[323276199,1713864641619,-500.0,0.00021917,2]
[323276202,1713864641629,-1691.51,0.00021917,2]
[323276203,1713864641638,-500.35305653,0.00021917,2]
[323276206,1713864641648,-500.0,0.00021917,2]
[323276208,1713864641656,-500.0,0.00021917,2]
[323276209,1713864641666,-1688.92,0.00021917,2]
[323276211,1713864641675,-500.0,0.00021917,2]
[323276213,1713864641684,-896.14,0.00021917,2]
[323276216,1713864641693,-590.56174095,0.00021917,2]
[323276218,1713864641703,-500.0,0.00021917,2]
[323276219,1713864641712,-503.99016589,0.00021917,2]
[323276221,1713864641721,-695.9,0.00021917,2]
[323276223,1713864641730,-500.0,0.00021917,2]
[323276225,1713864641739,-500.0,0.00021917,2]
[323276227,1713864641749,-504.34163219,0.00021917,2]
[323276229,1713864641758,-670.88673068,0.00021917,2]
[323276773,1713864646798,-466.16787958,0.0001724,2]
[323276908,1713865539113,-212.06825711,0.00014199,2]
[323276909,1713865539133,-30.44933295,0.000142,2]
[323276919,1713865645146,-206.06744026,0.00014057,2]
[323276920,1713865645169,-459.70738052,0.00014057,2]
[323276921,1713865645189,-459.70738052,0.00014058,2]
[323276922,1713865645211,-311.66869065,0.00014197,2]
[323276923,1713865645233,-300.0,0.00014198,2]
[323276924,1713865645255,-300.0,0.00014198,2]
[323276925,1713865645278,-42057.04220428,0.00014199,2]
[323276936,1713865745157,-300.0,0.00014056,2]
[323276937,1713865745177,-300.0,0.00014056,2]
[323276938,1713865745199,-20119.07904889,0.00014057,2]
[323276939,1713865745219,-368.04111275,0.000141,2]
[323276940,1713865745380,-368.04111275,0.000141,2]
[323276941,1713865745401,-368.04111275,0.000141,2]
[323276942,1713865745420,-368.04111275,0.000141,2]
[323276943,1713865745440,-576.2124078,0.00014197,2]
[323276944,1713865745461,-277.994233,0.00014198,2]
[323276945,1713865745481,-45511.70544706,0.00014198,2]
[323276946,1713865745501,-36823.40476632,0.00014199,2]
[323276947,1713865745522,-307.205924,0.00014205,2]
[323276948,1713865745542,-223.36735932,0.00014872,2]
[323276949,1713865745562,-211.67652827,0.0001497,2]
[323276950,1713865745582,-954.1175825,0.00014971,2]
[323276951,1713865745603,-19858.79122962,0.00014972,2]
[323276952,1713865747101,-368.04111275,0.000141,2]
[323276953,1713865747122,-368.04111275,0.000141,2]
[323276954,1713865747142,-368.04111275,0.000141,2]
[323276955,1713865747163,-113859.98695756,0.00014972,2]
[323276956,1713865748141,-368.04111275,0.000141,2]
[323276957,1713865748163,-58920.27384266,0.00014972,2]
[323276958,1713865748184,-24900.0,0.00014974,2]
[323276959,1713865748204,-420.0,0.00015398,2]
[323276960,1713865748225,-420.0,0.00015462,2]
[323276961,1713865748245,-13892.0,0.00016,2]
[323276962,1713865748265,-181.51178301,0.00016133,2]
[323276963,1713865748285,-587.0,0.00016869,2]
[323276964,1713865748305,-587.0,0.00017008,2]
[323276965,1713865748326,-203.84630574,0.00017238,2]
[323276966,1713865748346,-596.83635133,0.00017238,2]
[323276967,1713865748370,-826.05779983,0.00017238,2]
[323276968,1713865748390,-1090.08472256,0.00017238,2]
[323276969,1713865748411,-2774.01551629,0.00017238,2]
[323276970,1713865748432,-247.22010741,0.00017238,2]
[323276971,1713865748452,-162.02240911,0.00017238,2]
[323276972,1713865748472,-272.57129579,0.00017238,2]
[323276973,1713865748495,-1878.1368462,0.00017238,2]
[323276974,1713865748518,-17128.69106401,0.00017239,2]
[323276975,1713865748549,-221.86358459,0.0001724,2]
[323276976,1713865748576,-823.0,0.0001848,2]
[323276977,1713865748605,-603.3578092,0.000185,2]
[323276978,1713865748640,-482.3682444,0.00018709,2]
[323276979,1713865756143,-368.04111275,0.000141,2]
[323276980,1713865756162,-368.04111275,0.000141,2]
[323276981,1713865756183,-368.04111275,0.000141,2]
[323276982,1713865756203,-368.04111275,0.000141,2]
[323276983,1713865756223,-368.04111275,0.000141,2]
[323276984,1713865756242,-368.04111275,0.000141,2]
[323276985,1713865756261,-368.04111275,0.000141,2]
[323276986,1713865756281,-368.04111275,0.000141,2]
[323276987,1713865756302,-368.04111275,0.000141,2]
[323276988,1713865756321,-368.04111275,0.000141,2]
[323276989,1713865756340,-368.04111275,0.000141,2]
[323276990,1713865756359,-185.02449245,0.000141,2]
[323276991,1713865769125,-183.01661755,0.000141,2]
[323276992,1713865769147,-19184.99388325,0.00014199,2]
[323276993,1713865769168,-163.46107966,0.00015,2]
[323276994,1713865773111,-58.40250493,0.00015,2]
[323276995,1713865773132,-340.6317556,0.00018709,2]
[323276996,1713865773154,-752.96573947,0.000189,2]
[323277006,1713865831984,-300.0,0.00014198,2]
[323277007,1713865831994,-300.0,0.00014198,2]
[323277008,1713865832003,-420.0,0.00015552,2]
[323277009,1713865832012,-420.0,0.00015618,2]
[323277010,1713865832021,-221.23139293,0.00015998,2]
[323277011,1713865832031,-587.0,0.00017034,2]
[323277012,1713865832040,-587.0,0.0001718,2]
[323277013,1713865832049,-349.0,0.00018658,2]
[323277014,1713865832058,-776.40480682,0.000188,2]
[323277015,1713865832068,-823.0,0.00018898,2]
[323277016,1713865832077,-1329.69968077,0.000189,2]
[323277017,1713865832087,-19184.99388325,0.000189,2]
[323277018,1713865832096,-221.86358459,0.000189,2]
[323277019,1713865832105,-189.19295912,0.00018999,2]
[323277020,1713865832114,-615.75933218,0.00019177,2]
[323277021,1713865832123,-167.567261,0.00019178,2]
[323277022,1713865832133,-200.0,0.00019506,2]
[323277023,1713865832142,-181.511783,0.000199,2]
[323277024,1713865832151,-2000.0,0.000199,2]
[323277025,1713865832160,-1088.67,0.0001999,3]
[323277026,1713865832169,-603.3578092,0.00019999,2]
[323277027,1713865832180,-10117.08160631,0.0002,2]
[323277028,1713865832189,-319.72058798,0.0002,2]
[323277029,1713865832198,-156.66934156,0.0002,2]
[323277030,1713865832208,-3600.0,0.0002,2]
[323277031,1713865832218,-289.98901566,0.0002,4]
[323277032,1713865832227,-154.84515485,0.0002,2]
[323277033,1713865832236,-154.84515485,0.0002,2]
[323277034,1713865832246,-400.0,0.0002,2]
[323277035,1713865832255,-354.80715765,0.0002,2]
[323277036,1713865832265,-1000.0,0.0002,2]
[323277037,1713865832274,-2769.07414268,0.0002,2]
[323277038,1713865832284,-155.09226132,0.0002,2]
[323277039,1713865832293,-5459.67159958,0.0002,2]
[323277040,1713865832303,-241.51912105,0.0002,2]
[323277041,1713865832312,-277.98874346,0.0002,2]
[323277042,1713865832322,-154.84515485,0.0002,2]
[323277043,1713865832331,-678.04287141,0.0002,2]
[323277044,1713865832340,-238.88786072,0.0002,2]
[323277045,1713865832350,-73081.97756939,0.0002,2]
[323277046,1713865832359,-200.0,0.0002,2]
[323277047,1713865832368,-1152.0,0.00020787,2]
[323277048,1713865832378,-150.81901718,0.00020967,4]
[323277049,1713865832388,-7925.57647667,0.00021,2]
[323277050,1713865832397,-3344.28028285,0.00021,2]
[323277051,1713865832406,-250.07747707,0.00021,2]
[323277052,1713865832417,-5000.0,0.000213,2]
[323277053,1713865832428,-2177.34,0.0002136,3]
[323277054,1713865832437,-150.81901718,0.00021395,2]
[323277055,1713865832446,-153.0,0.00021506,2]
[323277056,1713865832455,-153.0,0.00021506,2]
[323277057,1713865832465,-153.0,0.00021506,2]
[323277058,1713865832474,-155.2002665,0.00021506,2]
[323277059,1713865832484,-153.0,0.00021506,2]
[323277060,1713865832493,-25612.83481183,0.000217,3]
[323277061,1713865832505,-361.8150045,0.000217,3]
[323277062,1713865832516,-3857.19682901,0.000217,3]
[323277063,1713865832527,-3230.96341642,0.000217,3]
[323277115,1713865837905,-6777.32702248,0.000217,3]
[323277118,1713865837916,-4603.86291576,0.000217,3]
[323277120,1713865837925,-157.15569525,0.00021869,2]
[323277122,1713865837936,-154.84515485,0.00021915,2]
[323277124,1713865837945,-300.0,0.00021915,2]
[323277126,1713865837955,-2587.76784421,0.00021915,2]
[323277128,1713865837965,-860.77744041,0.00021915,2]
[323277130,1713865837974,-474.60169326,0.00021916,2]
[323277132,1713865837983,-197.96771572,0.00021916,2]
[323277134,1713865837992,-500.0,0.00021916,2]
[323277136,1713865838001,-180.29576103,0.00021916,2]
[323277138,1713865838011,-553.83136724,0.00021916,2]
[323277140,1713865838020,-176.06799262,0.00021916,2]
[323277142,1713865838029,-502.6067113,0.00021917,2]
[323277144,1713865838038,-506.87135803,0.00021917,2]
[323277146,1713865838047,-500.0,0.00021917,2]
[323277148,1713865838057,-1297.58,0.00021917,2]
[323277150,1713865838066,-151.0,0.00021917,2]
[323277152,1713865838076,-500.0,0.00021917,2]
[323277154,1713865838086,-500.0,0.00021917,2]
[323277156,1713865838095,-164.79285935,0.00021917,2]
[323277158,1713865838104,-503.46666839,0.00021917,2]
[323277160,1713865838115,-151.0,0.00021917,2]
[323277162,1713865838124,-189.495187,0.00021917,2]
[323277164,1713865838133,-500.0,0.00021917,2]
[323277166,1713865838142,-500.0,0.00021917,2]
[323277168,1713865838152,-500.0,0.00021917,2]
[323277170,1713865838161,-500.0,0.00021917,2]
[323277172,1713865838171,-507.61754007,0.00021917,2]
[323277174,1713865838180,-1185.11,0.00021917,2]
[323277176,1713865838191,-594.26746955,0.00021917,2]
[323277177,1713865838200,-500.0,0.00021917,2]
[323277180,1713865838209,-500.0,0.00021917,2]
[323277182,1713865838218,-500.0,0.00021917,2]
[323277183,1713865838228,-500.0,0.00021917,2]
[323277186,1713865838237,-500.0,0.00021917,2]
[323277187,1713865838246,-500.0,0.00021917,2]
[323277189,1713865838255,-500.0,0.00021917,2]
[323277192,1713865838264,-500.0,0.00021917,2]
[323277193,1713865838273,-500.0,0.00021917,2]
[323277196,1713865838282,-500.0,0.00021917,2]
[323277197,1713865838291,-500.0,0.00021917,2]